[Event "ESP-ch Teams Honor 2024"]
[Site "Melilla"]
[Date "2024.10.12"]
[Round "1.22"]
[White "Korneev, Oleg"]
[Black "Arizmendi Martinez, Julen Luis"]
[Result "1/2-1/2"]
[ECO "C93"]
[WhiteElo "2454"]
[BlackElo "2507"]
[Annotator "TA"]
[PlyCount "61"]
[EventDate "2024.10.11"]
[EventType "team-tourn"]
[EventCountry "ESP"]
[SourceTitle "playchess.com"]
[Source "ChessBase"]
[SourceQuality "1"]
[WhiteTeam "Solvay"]
[BlackTeam "Andreu"]
[TimeControl "5400+30"]

{[%evp 18,61,42,28,43,29,33,28,27,19,59,48,61,68,47,38,146,116,112,78,83,94,76,68,112,110,158,161,209,217,202,143,129,131,128,77,81,65,93,0,0,0,106,0,0,0]} 1. e4 {[%emt 0:00:01]} e5 {[%emt 0:00:16]} 2. Nf3 {[%emt 0:00:04]} Nc6 {[%emt 0:00:06]} 3. Bb5 {[%emt 0:00:06]} a6 {[%emt 0:00:24]} 4. Ba4 {[%emt 0:00:14]} Nf6 {[%emt 0:01:18]} 5. O-O {[%emt 0:02:42]} Be7 {[%emt 0:02:48]} 6. Re1 {[%emt 0:00:07]} b5 {[%emt 0:01:28]} 7. Bb3 {[%emt 0:00:02]} d6 {[%emt 0:01:04]} 8. c3 {[%emt 0:00:03]} O-O {[%emt 0:00:15]} 9. h3 {[%emt 0:00:02]} h6 {[%emt 0:04:24]} 10. d4 {[%emt 0:00:05]} Bd7 {[%emt 0:01:08]} 11. Nbd2 {[%emt 0:00:12]} Re8 {[%emt 0:01:21]} 12. Nf1 {[%emt 0:00:09][%cal Bd2f1,Bf1g3,Bg3f5,Bf5h4][%mdl 32]} a5 {[%emt 0:04:44] White has an edge.} 13. d5 {[%emt 0:27:33]} Na7 {[%emt 0:06:15]} 14. a4 {[%emt 0:02:54]} c6 {[%emt 0:02:36]} 15. dxc6 {[%emt 0:03:58]} Bxc6 {[%emt 0:00:50]} 16. Ng3 {[%emt 0:00:48]} Qb8 {[%emt 0:09:36]} (16... bxa4 $14 17. Bxa4 Qc7) 17. Nh2 {[%emt 0:15:28] And now Ng4 would win.} bxa4 {[%emt 0:11:40]} 18. Bxa4 {[%emt 0:02:33]} Bxa4 {[%emt 0:02:31]} 19. Rxa4 {[%emt 0:08:45][%cal Oh2g4]} Nc8 {[%emt 0:17:29]} 20. Ng4 {[%emt 0:00:19]} Nb6 {[%emt 0:00:13]} 21. Nf5 {[%emt 0:04:38] Hoping for Nxe7+.} Nbd7 {[%emt 0:07:28]} (21... Nxa4 $142 22. Nxe7+ Kh8 (22... Rxe7 23. Nxf6+ Kh8 24. Nd5 $16)) 22. Qf3 {[%emt 0:14:25][%cal Oc1h6] Bxh6! is the strong threat. White has more active pieces.} h5 {[%emt 0:07:32] [#]} (22... Kh8 $142) 23. Ngh6+ $1 $18 {[%emt 0:04:52][%mdl 512]} Kf8 {[%emt 0:00:20][%cal Bg8f8,Bf8g7,Bg7f7][%mdl 32] [#]} 24. Qg3 {[%emt 0:00:48][%csl Gf5][%cal Rg3g7]} g6 {[%emt 0:00:33]} 25. Nh4 $1 {[%emt 0:00:25][%cal Oh4g6] Intending Nxg6+! and mate.} (25. Nxe7 $6 Rxe7 26. Qg5 Qb5 $11) 25... Kg7 {[%emt 0:07:17] [#]} 26. Nxf7 $1 {[%emt 0:00:06][%mdl 512]} Kxf7 $16 {[%emt 0:00:39]} 27. Qxg6+ {[%emt 0:00:20]} Ke6 {[%emt 0:00:02]} 28. Qf5+ {[%emt 0:11:53] Chess con chili.} ({And not} 28. Nf5 Rg8 29. Ng7+ Rxg7 30. Qxg7 Nc5 $17) ({White should try} 28. f4 $16 {[%csl Ge4,Gg6,Gh4][%cal Rf4f5]} Nc5 29. Be3 Nxa4 30. Qf5+ Kf7 31. Qg6+ Ke6 (31... Kf8 32. Nf5 Rd8 33. Qg7+ Ke8 34. Qxe7#) 32. Qf5+ Kf7 33. Qg6+ Ke6 (33... Kf8 34. Nf5 Rd8 35. Qg7+ Ke8 36. Qxe7#)) 28... Kf7 $11 {[%emt 0:00:02]} 29. Qg6+ {[%emt 0:00:40]} (29. Ra1 $11) 29... Ke6 $16 {[%emt 0:00:01]} 30. Qf5+ {[%emt 0:00:34]} ({Not} 30. Nf5 Rg8 31. Ng7+ Rxg7 32. Qxg7 Nc5 $19) (30. f4 $16 {[%csl Ge4,Gg6,Gh4][%cal Rf4f5]} Nc5 31. Qf5+ Kf7 32. Rc4) 30... Kf7 $11 {[%emt 0:00:02]} 31. Qg6+ {[%emt 0:00:28] Weighted Error Value: White=0.28 (precise) /Black=0.25 (precise) .  Mistake:       	White=4     	Black=3      Inaccurate:     	White=1     	Black=2      OK:         	White=7     	Black=8      Best:        	---       	Black=2      Strong:       	White=1     	---} 1/2-1/2

[Event "ESP-ch Teams Honor 2024"]
[Site "Melilla"]
[Date "2024.10.12"]
[Round "1.23"]
[White "Macias Pino, Diego"]
[Black "Javakhishvili, Lela"]
[Result "1/2-1/2"]
[ECO "C67"]
[WhiteElo "2479"]
[BlackElo "2425"]
[Annotator "TA"]
[PlyCount "43"]
[EventDate "2024.10.11"]
[EventType "team-tourn"]
[EventCountry "ESP"]
[SourceTitle "playchess.com"]
[Source "ChessBase"]
[SourceQuality "1"]
[WhiteTeam "Andreu"]
[BlackTeam "Solvay"]
[TimeControl "5400+30"]

{[%evp 12,43,19,16,36,37,35,28,27,-9,-1,0,-4,-26,-19,-26,-6,-48,-30,-57,-56,-59,-56,-75,0,0,0,-47,0,0,0,-51,0,0]} 1. e4 {[%emt 0:00:17]} e5 {[%emt 0:00:10]} 2. Nf3 {[%emt 0:00:06]} Nc6 {[%emt 0:00:05]} 3. Bb5 {[%emt 0:00:14]} Nf6 {[%emt 0:00:15]} 4. O-O {[%emt 0:01:32]} Nxe4 {[%emt 0:00:09]} 5. Re1 {[%emt 0:01:13]} Nd6 {[%emt 0:00:09]} 6. Nxe5 {[%emt 0:00:06]} Be7 {[%emt 0:00:13]} 7. Bf1 {[%emt 0:00:14]} Nf5 {[%emt 0:01:02]} 8. Nf3 {[%emt 0:00:35]} O-O {[%emt 0:00:23]} 9. d4 {[%emt 0:00:27][%cal Bd2d4,Bd4d5][%mdl 32]} d5 {[%emt 0:00:14] White has an edge.} 10. c4 {[%emt 0:02:42]} dxc4 {[%emt 0:14:47]} 11. d5 {[%emt 0:05:33]} Nb4 {[%emt 0:07:52]} 12. Bxc4 {[%emt 0:08:28]} Nd6 {[%emt 0:10:09]} 13. Bb3 {[%emt 0:07:17]} Bf5 {[%emt 0:08:05]} 14. Be3 {[%emt 0:09:25]} Bf6 {[%emt 0:05:18]} 15. Nd4 {[%emt 0:06:41]} Bg6 {[%emt 0:00:15]} 16. Nc3 {[%emt 0:01:23]} Nd3 {[%emt 0:02:12]} 17. Re2 {[%emt 0:00:19]} Ne5 {[%emt 0:00:56]} 18. Bf4 {[%emt 0:06:00]} Nd3 {[%emt 0:03:52]} 19. Be3 {[%emt 0:00:10]} Ne5 {[%emt 0:01:36]} 20. Bf4 {[%emt 0:07:51]} Nd3 {[%emt 0:02:52]} 21. Be3 {[%emt 0:01:23]} Ne5 {[%emt 0:00:46]} ({Better is} 21... a6 $15) 22. Bf4 {Weighted Error Value: White=0.08 (flawless) /Black=0.13 (very precise) .  Mistake:       	---       	Black=1      Inaccurate:     	White=3     	Black=1      OK:         	White=10    	Black=8      Best:        	---       	Black=2} 1/2-1/2

[Event "ESP-ch Teams Honor 2024"]
[Site "Melilla"]
[Date "2024.10.12"]
[Round "1.24"]
[White "Tejedor Fuente, Enrique"]
[Black "Vega Gutierrez, Belinda"]
[Result "1-0"]
[ECO "C65"]
[WhiteElo "2400"]
[BlackElo "2168"]
[Annotator "RC"]
[PlyCount "151"]
[EventDate "2024.10.11"]
[EventType "team-tourn"]
[EventCountry "ESP"]
[SourceTitle "playchess.com"]
[Source "ChessBase"]
[SourceQuality "1"]
[WhiteTeam "Solvay"]
[BlackTeam "Andreu"]
[TimeControl "5400+30"]

1. e4 {[%emt 0:00:02]} e5 {[%emt 0:00:09]} 2. Nf3 {[%emt 0:00:04]} Nc6 {[%emt 0:00:10]} 3. Bb5 {[%emt 0:00:04]} Nf6 {[%emt 0:03:03]} 4. O-O {[%emt 0:00:22]} Be7 {[%emt 0:07:29]} 5. Re1 {[%emt 0:00:45]} d6 {[%emt 0:00:11]} 6. c3 {[%emt 0:02:32]} Bd7 {[%emt 0:11:14]} 7. d4 {[%emt 0:06:49]} O-O {[%emt 0:01:48]} 8. d5 {[%emt 0:01:52]} Nb8 {[%emt 0:00:32]} 9. Bd3 {[%emt 0:03:01]} Bg4 {[%emt 0:00:41]} 10. c4 {[%emt 0:01:41]} Nbd7 {[%emt 0:00:59]} 11. Nc3 {[%emt 0:04:17]} Nc5 {[%emt 0:10:20]} 12. Bc2 {[%emt 0:00:19]} a5 {[%emt 0:00:11]} 13. b3 {[%emt 0:12:17]} Nfd7 {[%emt 0:06:56]} 14. h3 {[%emt 0:05:14]} Bxf3 {[%emt 0:00:43]} 15. Qxf3 {[%emt 0:00:35]} Bg5 {[%emt 0:14:38]} 16. Bb2 {[%emt 0:00:06]} a4 {[%emt 0:20:36]} 17. Rab1 {[%emt 0:04:39]} a3 {[%emt 0:05:57]} 18. Ba1 {[%emt 0:02:33]} Na6 {[%emt 0:00:25]} 19. b4 {[%emt 0:00:06]} Nb6 {[%emt 0:03:42]} 20. Qe2 {[%emt 0:12:42]} c5 {[%emt 0:00:44]} 21. dxc6 {[%emt 0:00:31]} bxc6 {[%emt 0:00:07]} 22. Red1 {[%emt 0:04:01]} Qc7 {[%emt 0:00:29]} 23. g3 {[%emt 0:01:07]} Rfb8 {[%emt 0:02:11]} 24. h4 {[%emt 0:08:52]} Be7 {[%emt 0:00:04]} 25. Kh2 {[%emt 0:01:29]} Bf8 {[%emt 0:05:44]} 26. Bd3 {[%emt 0:05:36]} Nd7 {[%emt 0:00:30]} 27. b5 {[%emt 0:06:05]} Nac5 {[%emt 0:00:03]} 28. Bc2 {[%emt 0:01:30]} Ne6 {[%emt 0:01:50]} 29. Rd2 {[%emt 0:02:02]} Nd4 {[%emt 0:00:39]} 30. Qd1 {[%emt 0:00:08]} Nc5 {[%emt 0:00:49]} 31. Bd3 {[%emt 0:01:33]} g6 {[%emt 0:02:10]} 32. Bf1 {[%emt 0:00:37]} Bh6 {[%emt 0:00:17]} 33. Rxd4 {[%emt 0:01:11]} exd4 {[%emt 0:00:02]} 34. Qxd4 {[%emt 0:00:07]} Ne6 {[%emt 0:00:10]} 35. Nd5 {[%emt 0:01:05]} Nxd4 {[%emt 0:00:15]} 36. Nxc7 {[%emt 0:00:02]} Nf3+ {[%emt 0:00:28]} 37. Kg2 {[%emt 0:00:36]} Nd2 {[%emt 0:00:06]} 38. Rd1 {[%emt 0:00:52]} Ra7 {[%emt 0:00:56]} 39. Na6 {[%emt 0:00:29]} Rc8 {[%emt 0:01:31]} 40. Bd3 {[%emt 0:02:10]} cxb5 {[%emt 0:00:24]} 41. cxb5 {[%emt 0:00:01]} Nc4 {[%emt 0:00:52]} 42. Bxc4 {[%emt 0:01:19]} Rxc4 {[%emt 0:00:02]} 43. Rxd6 {[%emt 0:00:06]} Rc8 {[%emt 0:01:18]} 44. b6 {[%emt 0:01:40]} Rb7 {[%emt 0:00:02]} 45. Nc7 {[%emt 0:03:00]} Bf8 {[%emt 0:00:19]} 46. Rc6 {[%emt 0:00:07]} Be7 {[%emt 0:00:51]} 47. Be5 {[%emt 0:00:41]} Bd8 {[%emt 0:00:43]} 48. h5 {[%emt 0:02:08]} gxh5 {[%emt 0:00:30]} 49. Kh3 {[%emt 0:00:28]} Be7 {[%emt 0:00:35]} 50. g4 {[%emt 0:01:24]} hxg4+ {[%emt 0:00:09]} 51. Kxg4 {[%emt 0:00:01]} f6 {[%emt 0:00:30]} 52. Bf4 {[%emt 0:03:14]} Kf7 {[%emt 0:00:06]} 53. Kf5 {[%emt 0:00:16]} Bd8 {[%emt 0:00:49]} 54. Ne6 {[%emt 0:00:54]} Rxc6 {[%emt 0:00:53]} 55. Nxd8+ {[%emt 0:00:07]} Ke8 {[%emt 0:00:08]} 56. Nxb7 {[%emt 0:00:16]} Rxb6 {[%emt 0:00:06]} 57. Nd6+ {[%emt 0:00:13]} Kd7 {[%emt 0:00:19]} 58. Kxf6 {[%emt 0:02:41]} Rb8 {[%emt 0:01:32]} 59. e5 {[%emt 0:00:23]} Rf8+ {[%emt 0:00:18]} 60. Nf7 {[%emt 0:00:08]} Re8 {[%emt 0:00:23]} 61. Ng5 {[%emt 0:00:44]} Rf8+ {[%emt 0:00:03]} 62. Nf7 {[%emt 0:00:06]} Re8 {[%emt 0:00:10]} 63. Bc1 {[%emt 0:01:21]} Re6+ {[%emt 0:00:34]} 64. Kf5 {[%emt 0:00:04]} Ra6 {[%emt 0:00:53]} 65. Ng5 {[%emt 0:01:01]} h6 {[%emt 0:00:31]} 66. Ne4 {[%emt 0:00:15]} Ke7 {[%emt 0:00:16]} 67. Nf6 {[%emt 0:00:46]} Kf7 {[%emt 0:01:21]} 68. f3 {[%emt 0:00:19]} Rc6 {[%emt 0:00:33]} 69. Bxa3 {[%emt 0:00:39]} Ra6 {[%emt 0:00:26]} 70. Bd6 {[%emt 0:00:15]} Ra5 {[%emt 0:00:32]} 71. a3 {[%emt 0:00:32]} Rb5 {[%emt 0:00:20]} 72. Bb4 {[%emt 0:00:28]} Rb6 {[%emt 0:00:21]} 73. f4 {[%emt 0:00:14]} Rb5 {[%emt 0:00:47]} 74. a4 {[%emt 0:00:54]} Rxb4 {[%emt 0:00:20]} 75. e6+ {[%emt 0:00:01]} Kf8 {[%emt 0:00:14]} 76. e7+ {[%emt 0:00:01]} 1-0

[Event "ESP-ch Teams Honor 2024"]
[Site "Melilla"]
[Date "2024.10.13"]
[Round "2.1"]
[White "Puranik, Abhimanyu"]
[Black "Aravindh, Chithambaram VR."]
[Result "1/2-1/2"]
[ECO "A20"]
[WhiteElo "2639"]
[BlackElo "2698"]
[Annotator "TA"]
[PlyCount "78"]
[EventDate "2024.10.11"]
[EventType "team-tourn"]
[EventCountry "ESP"]
[SourceTitle "playchess.com"]
[Source "ChessBase"]
[SourceQuality "1"]
[WhiteTeam "Sestao"]
[BlackTeam "Solvay"]
[TimeControl "5400+30"]

{[%evp 9,78,16,0,0,8,0,0,0,0,-19,0,0,0,0,20,20,20,0,0,0,-2,-20,-22,-35,-9,-9,0,-52,-45,-44,-40,-43,4,8,8,5,4,18,14,15,30,29,203,181,192,163,1186,1136,1095,1093,1254,1202,1131,787,716,630,1742,0,0,0,0,0,0,0,0,0,0,0,0,0,0]} 1. c4 {[%emt 0:00:18]} e5 {[%emt 0:00:13]} 2. g3 {[%emt 0:00:23]} Nf6 {[%emt 0:00:22]} 3. Bg2 {[%emt 0:00:20]} c6 {[%emt 0:00:50]} 4. d4 {[%emt 0:00:43]} e4 {[%emt 0:00:39]} 5. a3 {[%emt 0:00:41]} d5 {[%emt 0:01:20]} 6. Nc3 {[%emt 0:00:32]} Be7 {[%emt 0:10:42]} 7. f3 {[%emt 0:01:30]} exf3 {[%emt 0:05:34]} 8. Nxf3 {[%emt 0:00:05]} O-O {[%emt 0:00:13]} 9. O-O {[%emt 0:00:34]} dxc4 {[%emt 0:06:08]} 10. e4 {[%emt 0:00:34]} h6 {[%emt 0:03:07]} 11. h3 {[%emt 0:00:20]} Na6 {[%emt 0:02:06]} 12. Kh2 {[%emt 0:05:33][%mdl 1024] White has compensation.} b5 {[%emt 0:10:26]} 13. Be3 {[%emt 0:06:35]} Nc7 {[%emt 0:02:57]} 14. Nh4 {[%emt 0:16:13]} a5 {[%emt 0:03:37]} 15. Nf5 {[%emt 0:09:22][%cal Of5h6]} b4 {[%emt 0:06:51]} 16. Na4 {[%emt 0:02:34]} Rb8 {[%emt 0:18:09] Against Nb6} 17. axb4 {[%emt 0:08:43]} axb4 {[%emt 0:00:22]} 18. Qc2 {[%emt 0:14:14]} (18. Rc1 $11) 18... Bxf5 $15 {[%emt 0:01:28]} 19. Rxf5 {[%emt 0:02:16]} Nb5 $1 {[%emt 0:00:09]} 20. Rd1 {[%emt 0:02:47][%cal Od4d5]} (20. Qxc4 Nd6 21. Qf1 Nxf5 (21... Nfxe4 22. Rf4 $11) (21... Ndxe4 22. Qd3 $15) 22. Qxf5 Qc8 23. Qxc8 Rfxc8 $17) 20... b3 {[%emt 0:06:49]} (20... Ra8 $15 {was preferrable.} 21. Rff1 Qa5) 21. Qc1 $1 $11 {[%emt 0:01:51][%cal Od4d5] next d5! is good for White.} (21. Qxc4 Nd6 22. Qf1 Nxf5 (22... Nfxe4 23. Re5 $11) (22... Ndxe4 23. Qd3 $11) 23. Qxf5 Qd7 $17) 21... Ra8 $132 {[%emt 0:12:12][%mdl 2048] Black has counterplay} 22. Nc3 {[%emt 0:02:42]} (22. Qxc4 $2 Nd6 23. Qxb3 Nxf5 (23... Nfxe4 24. Re5 $14) (23... Ndxe4 24. Nc3 $11) 24. exf5 Bd6 $19) 22... Nxc3 {[%emt 0:00:12]} 23. Qxc3 {[%emt 0:00:07]} Ra4 {[%emt 0:00:05]} 24. d5 {[%emt 0:06:18][%cal Oe3h6]} cxd5 {[%emt 0:04:32] Threatens to win with ...Qc8.} 25. e5 $1 {[%emt 0:00:58]} Bb4 $2 {[%emt 0:00:34]} (25... Nd7 $11 {and Black is okay.}) 26. Qd4 $18 {[%emt 0:01:10]} Qc8 {[%emt 0:01:24]} 27. Rdf1 {[%emt 0:00:54]} Nd7 {[%emt 0:00:08] [#]} (27... Ne4) 28. Rxf7 $3 {[%emt 0:07:04][%mdl 512]} Rxf7 {[%emt 0:00:35]} 29. Bxd5 {[%emt 0:01:56]} Nf8 {[%emt 0:00:29]} 30. Bxf7+ {[%emt 0:01:30] This pair of bishops is nice.} Kh8 {[%emt 0:00:15] [#]} 31. Bxh6 $1 {[%emt 0:01:42][%mdl 512]} Bc5 {[%emt 0:01:57]} 32. Qh4 {[%emt 0:02:41]} gxh6 {[%emt 0:00:05]} 33. Rf6 $2 {[%emt 0:00:52]} ({Stronger than} 33. Qxh6+ Nh7 $15) ({Only move:} 33. Qf6+ $18 Kh7 34. e6) 33... Be3 $11 {[%emt 0:00:46] The position is equal.} 34. Rg6 {[%emt 0:01:04] Intending Qf6+ and mate.} Qf5 {[%emt 0:00:25] ( -> ...Qf2+)} ({And not} 34... Nxg6 35. Qf6+ Kh7 36. Bxg6+ Kg8 37. Qf7+ Kh8 38. Qh7#) 35. Qf6+ $1 {[%emt 0:01:13]} ({Avoid the trap} 35. Rg8+ $2 Kh7 $19) 35... Qxf6 {[%emt 0:00:04]} 36. Rg8+ {[%emt 0:00:03]} Kh7 {[%emt 0:00:04]} 37. exf6 {[%emt 0:00:03]} Bc5 {[%emt 0:02:01]} 38. Rg7+ {[%emt 0:00:03]} Kh8 {[%emt 0:00:03]} 39. Rg8+ {[%emt 0:00:07]} Kh7 {[%emt 0:00:04] Blacks defense is rewarded with a draw.   Weighted Error Value: White=0.24 (precise) /Black=0.16 (very precise) .  Loses game:     	---       	Black=1      Mistake:       	White=1     	Black=2      Inaccurate:     	---       	Black=1      OK:         	White=9     	Black=11     Best:        	White=2     	Black=3      Strong:       	White=3     	Black=1} 1/2-1/2

[Event "ESP-ch Teams Honor 2024"]
[Site "Melilla"]
[Date "2024.10.13"]
[Round "2.2"]
[White "Ivanchuk, Vasyl"]
[Black "Svane, Frederik"]
[Result "1/2-1/2"]
[ECO "B93"]
[WhiteElo "2632"]
[BlackElo "2655"]
[Annotator "TA"]
[PlyCount "45"]
[EventDate "2024.10.11"]
[EventType "team-tourn"]
[EventCountry "ESP"]
[SourceTitle "playchess.com"]
[Source "ChessBase"]
[SourceQuality "1"]
[WhiteTeam "Solvay"]
[BlackTeam "Sestao"]
[TimeControl "5400+30"]

{[%evp 14,45,2,20,34,0,0,0,16,32,26,31,35,24,35,35,29,33,28,0,0,-11,-16,-81,-37,-75,-11,-23,0,-64,0,-12,0,-56]} 1. e4 {[%emt 0:00:03]} c5 {[%emt 0:00:08]} 2. Nf3 {[%emt 0:00:04]} d6 {[%emt 0:00:09]} 3. d4 {[%emt 0:00:03]} cxd4 {[%emt 0:00:06]} 4. Nxd4 {[%emt 0:00:03]} Nf6 {[%emt 0:00:07]} 5. Nc3 {[%emt 0:00:03]} a6 {[%emt 0:00:05]} 6. f4 {[%emt 0:00:03]} g6 {[%emt 0:01:21]} 7. Nf3 {[%emt 0:00:39]} Bg7 {[%emt 0:09:18]} 8. e5 {[%emt 0:00:10][%cal Be4e5,Be5d6][%mdl 32]} Nfd7 {[%emt 0:21:25]} 9. exd6 {[%emt 0:03:32]} O-O {[%emt 0:02:17]} 10. Be3 {[%emt 0:02:04]} Nf6 {[%emt 0:14:17]} 11. Qd2 {[%emt 0:16:39]} Nc6 {[%emt 0:09:50]} 12. O-O-O {[%emt 0:25:40]} Bf5 {[%emt 0:00:37]} 13. Bd3 {[%emt 0:10:37] And now Bxf5 would win.} Qxd6 {[%emt 0:03:46]} 14. Bxf5 {[%emt 0:00:09]} Qxd2+ {[%emt 0:00:02]} 15. Rxd2 {[%emt 0:00:04]} gxf5 {[%emt 0:00:04]} 16. Rhd1 {[%emt 0:01:04]} e6 {[%emt 0:01:36]} 17. g3 {[%emt 0:01:52]} b5 {[%emt 0:06:00]} 18. Kb1 {[%emt 0:07:30]} (18. Re2 $11 {remains equal.}) 18... Rfc8 {[%emt 0:01:08]} 19. Ne2 {[%emt 0:00:10] [#]} Ne4 {[%emt 0:03:56]} ({Better is} 19... b4 $1 $17) 20. Rd7 $11 {[%emt 0:00:31]} Nf6 {[%emt 0:00:43]} 21. R7d2 {[%emt 0:00:14]} Ne4 {[%emt 0:01:27]} (21... b4 $15) 22. Rd7 {[%emt 0:00:08]} Nf6 23. R7d2 {Weighted Error Value: White=0.14 (very precise) /Black=0.22 (precise) .  Mistake:       	White=1     	Black=2      Inaccurate:     	White=3     	Black=1      OK:         	White=5     	Black=7      Best:        	White=3     	---} 1/2-1/2

[Event "ESP-ch Teams Honor 2024"]
[Site "Melilla"]
[Date "2024.10.13"]
[Round "2.3"]
[White "Suarez Garcia, Carlos"]
[Black "Henderson de La Fuente, Lance"]
[Result "1/2-1/2"]
[ECO "A14"]
[WhiteElo "2441"]
[BlackElo "2525"]
[Annotator "TA"]
[PlyCount "73"]
[EventDate "2024.10.11"]
[EventType "team-tourn"]
[EventCountry "ESP"]
[SourceTitle "playchess.com"]
[Source "ChessBase"]
[SourceQuality "1"]
[WhiteTeam "Sestao"]
[BlackTeam "Solvay"]
[TimeControl "5400+30"]

{[%evp 16,73,22,16,24,0,6,0,0,0,45,39,44,7,14,21,11,0,0,0,0,0,0,0,36,23,31,0,4,0,0,0,-6,-8,58,0,0,0,0,0,0,0,0,0,0,0,0,0,0,-23,-23,-21,-17,-24,-26,-164,0,0,0,0]} 1. c4 {[%emt 0:00:08]} Nf6 {[%emt 0:00:48]} 2. g3 {[%emt 0:00:07]} e6 {[%emt 0:00:45]} 3. Bg2 {[%emt 0:00:10]} d5 {[%emt 0:00:20]} 4. Nf3 {[%emt 0:00:20]} Be7 {[%emt 0:00:29]} 5. O-O {[%emt 0:00:26]} O-O {[%emt 0:00:07]} 6. b3 {[%emt 0:00:11]} a5 {[%emt 0:04:52]} 7. Nc3 {[%emt 0:00:37]} c6 {[%emt 0:02:31]} 8. d4 {[%emt 0:01:33]} b6 {[%emt 0:03:40]} 9. Bb2 {[%emt 0:00:31]} Ba6 {[%emt 0:02:19]} 10. Nd2 {[%emt 0:13:22]} b5 {[%emt 0:03:56][%cal Rb5c4]} 11. Qc2 {[%emt 0:03:58]} Nbd7 {[%emt 0:08:58]} 12. Rfe1 {[%emt 0:02:32]} Rb8 {[%emt 0:10:54]} 13. c5 {[%emt 0:13:17]} b4 {[%emt 0:08:32]} 14. Na4 {[%emt 0:11:53]} Bb5 {[%emt 0:01:43]} 15. a3 {[%emt 0:11:27]} Qc7 {[%emt 0:06:29]} 16. axb4 {[%emt 0:02:30]} axb4 {[%emt 0:00:07]} 17. e4 {[%emt 0:03:03]} dxe4 {[%emt 0:01:53]} 18. Nxe4 {[%emt 0:01:06]} Nxe4 {[%emt 0:02:11]} 19. Bxe4 {[%emt 0:01:56]} Nf6 {[%emt 0:01:08]} 20. Nb6 {[%emt 0:06:31]} Nxe4 {[%emt 0:03:09]} 21. Rxe4 {[%emt 0:00:14]} Rfd8 {[%emt 0:06:04]} 22. Rg4 {[%emt 0:05:06][%cal Od4d5] [#] Strongly threatening d5!} (22. Bc1 {looks sharper.} Bxc5 23. Rh4 Bxb6 24. Bf4) 22... h5 {[%emt 0:11:19]} (22... f5 $5 23. Rf4 $8 Bg5 $11) 23. Rf4 {[%emt 0:02:55]} e5 {[%emt 0:00:44]} 24. Re4 {[%emt 0:04:16]} (24. dxe5 Bd3 25. Qd2 (25. Qc1 Bg5 $19) 25... Bxc5 $17) 24... Bf6 {[%emt 0:10:42]} ({Black should try} 24... Bxc5 $11 25. Qxc5 (25. dxc5 Bd3 $17) 25... Qxb6 26. Qxe5 Re8) 25. dxe5 {[%emt 0:02:10]} (25. Rae1 $1 $14) 25... Bd3 $11 {[%emt 0:00:28]} 26. Qc1 {[%emt 0:00:04]} Bg5 {[%emt 0:00:36]} 27. Qxg5 {[%emt 0:01:18]} Bxe4 {[%emt 0:00:05]} 28. Re1 {[%emt 0:01:51]} Bf3 {[%emt 0:01:31]} 29. e6 {[%emt 0:00:57]} fxe6 {[%emt 0:00:17][%cal Oe6e5]} 30. Be5 {[%emt 0:00:28] The board is on fire.} Qf7 {[%emt 0:00:19]} 31. Bxb8 {[%emt 0:00:30]} Rxb8 {[%emt 0:00:05]} 32. Qe5 {[%emt 0:02:14]} Rd8 {[%emt 0:00:25]} 33. Nc4 $1 {[%emt 0:01:24][%cal Bb6c4,Bc4e3,Be3d5][%mdl 32]} Bd5 {[%emt 0:01:49] White must now prevent ...Qf3.} 34. Ne3 {[%emt 0:00:47]} Bxb3 {[%emt 0:01:14] ...Qf3 would now be deadly.} 35. Rb1 {[%emt 0:01:08] [#]} (35. Qe4 $11) 35... Bd5 $2 {[%emt 0:00:38]} ({Much weaker is} 35... Rd2 $6 36. Qb8+ Kh7 37. f4 $11) ({Better is} 35... Qf3 $1 $19 {aiming for ...Ba2.} 36. h3 (36. Rxb3 $2 {loses.} Rd1+ 37. Nxd1 Qxd1+ 38. Kg2 Qxb3 $19) 36... Ba2) 36. Rxb4 {[%emt 0:01:38]} Qf3 {[%emt 0:00:32][%csl Gd5][%cal Rf3h1]} 37. Nxd5 {[%emt 0:00:27] Weighted Error Value: White=0.13 (very precise) /Black=0.14 (very precise) .  Missed win:     	---       	Black=1      Mistake:       	White=2     	Black=1      Inaccurate:     	White=2     	Black=2      OK:         	White=10    	Black=13     Best:        	White=1     	Black=2      Strong:       	White=1     	---} 1/2-1/2